Cogmind - Beta 13 @@@ ROGUE MODE // 2024.04.12 @ 17:41:45 Player: Ham Result: Self-destructed Performance ------------- Evolutions (2) 1000 Regions Visited (5) 1000 Robots Destroyed (30) 150 Value Destroyed (826) 826 Prototype IDs (1) 20 Alien Tech Used (0) 0 Bonus (300) 300 TOTAL SCORE: 3296 Bonus ------- Aligned with FarCom 300 Cogmind --------- Core Integrity 79/550 Matter 295/300 Energy 3/100 System Corruption 0% Temperature Cool (0) Movement Rolling (100) Location -8/Materials Parts ------- > --- POWER (1) -------- (None) > --- PROPULSION (4) --- Armored Huge Wheel Armored Huge Wheel > --- UTILITY (4) ------ Improved Heat Sink High-capacity Storage Unit Signal Interpreter Shield Generator > --- WEAPON (2) ------- Plasma Cutter > --- INVENTORY (20) --- Improved Deuterium Engine Improved Deuterium Engine Visual Processing Unit Seismic Detector Improved Targeting Computer ECM Suite Hacking Suite Trap Reconfigurator Heavy Assault Rifle Explosive Trap Explosive Trap Peak State ------------ > --- POWER ------------ Light Nuclear Core > --- PROPULSION ------- Armored Huge Wheel Armored Huge Wheel > --- UTILITY ---------- Improved Heat Sink High-capacity Storage Unit Signal Interpreter Shield Generator > --- WEAPON ----------- Plasma Cutter > --- INVENTORY -------- Improved Deuterium Engine Improved Deuterium Engine Visual Processing Unit Seismic Detector Improved Targeting Computer ECM Suite Hacking Suite Trap Reconfigurator Heavy Assault Rifle Explosive Trap Explosive Trap [Rating: 31] Favorites ----------- Power Ion Engine Engine Ion Engine Power Core Light Nuclear Core Propulsion Improved Aluminum Leg Leg Improved Aluminum Leg Wheel Armored Huge Wheel Utility Signal Interpreter Device Improved Heat Sink Storage High-capacity Storage Unit Processor Signal Interpreter Weapon Light Assault Rifle Energy Gun Medium Laser Ballistic Gun Light Assault Rifle Special Weapon Plasma Cutter Build | -11 -10 -10 -10 -9 -8 ------- Run | Yrd Mat Min Exi Min Mat Slots Evolved 4 | . . . . . 4 Power . | . . . . . . Propulsion 2 | . . . . . 2 Utility 2 | . . . . . 2 Weapon . | . . . . . . Parts Attached 34 | 6 5 . 1 . 22 Power 4 | 1 1 . . . 2 Engine 3 | 1 1 . . . 1 Core 1 | . . . . . 1 Reactor . | . . . . . . Propulsion 13 | 2 2 . . . 9 Treads . | . . . . . . Leg 11 | 2 2 . . . 7 Wheel 2 | . . . . . 2 Hover . | . . . . . . Flight . | . . . . . . Utility 9 | 1 2 . 1 . 5 Device 5 | . 1 . . . 4 Storage 3 | 1 . . 1 . 1 Processor 1 | . 1 . . . . Hackware . | . . . . . . Protection . | . . . . . . Artifact . | . . . . . . Weapon 8 | 2 . . . . 6 Energy Gun 3 | . . . . . 3 Energy Cannon . | . . . . . . Ballistic Gun 4 | 2 . . . . 2 Ballistic Cannon . | . . . . . . Launcher . | . . . . . . Special Weapon 1 | . . . . . 1 Impact Weapon . | . . . . . . Slashing Weapon . | . . . . . . Piercing Weapon . | . . . . . . Special Melee Weapon . | . . . . . . Unidentified Prototypes 1 | . . . . . 1 Parts Lost 17 | . . . . . 17 Power 2 | . . . . . 2 Propulsion 8 | . . . . . 8 Utility 1 | . . . . . 1 Weapon 6 | . . . . . 6 Highest Loss Streak 5 | . . . . . 5 To Critical Strikes . | . . . . . . Average Slot Usage (%) 88 | . 96 100 100 100 75 Engine 10 | . 14 14 14 14 5 Core 1 | . . . . . 2 Leg 22 | . 28 28 28 28 15 Wheel 1 | . . . . . 3 Device 9 | . 10 . . . 15 Storage 11 | . 14 14 14 14 9 Processor 8 | . . 14 14 14 9 Energy Gun 3 | . . . . . 9 Ballistic Gun 18 | . 28 28 28 28 5 Naked Turns . | . . . . . . Heaviest Build 51 | 10 13 12 47 47 51 Greatest Support 56 | 20 26 26 26 26 56 Greatest Overweight (x) 15 | 1 . . 1 1 15 Average Overweight (x) . | . . . . 1 1 Largest Inventory Capacity 20 | 8 8 8 20 20 20 Average Capacity 14 | 7 8 8 9 20 20 Most Carried 14 | 5 8 8 8 14 13 Average Carried 7 | 3 7 8 7 10 8 Final Capacity 20 | 8 8 8 20 20 20 Final Carried 14 | 5 8 8 8 14 11 Class Distribution -------------------- 72% | Mutant 13% | Scavenger-Skirmisher 8% | Skirmisher 4% | Scavenger-Mutant Dominant Class ---------------- Mutant | -10/Materials Mutant | -10/Mines Mutant | -10/Exiles Mutant | -9/Mines Scavenger-Skirmisher | -8/Materials Resources | -11 -10 -10 -10 -9 -8 ----------- Run | Yrd Mat Min Exi Min Mat Matter Collected 702 | 298 112 . . 18 274 Remotely . | . . . . . . Salvage Created 1112 | 151 220 . . . 741 Parts 52 | 12 11 . . . 29 Haulers Intercepted . | . . . . . . Recyclers Shooed . | . . . . . . Parts Field Recycled . | . . . . . . Retrieved Matter . | . . . . . . Parts Self-Destructed . | . . . . . . Prevented . | . . . . . . Kills | -11 -10 -10 -10 -9 -8 ------- Run | Yrd Mat Min Exi Min Mat Combat Hostiles Destroyed 21 | . 7 . . . 14 Guns 19 | . 7 . . . 12 AOE 1 | . . . . . 1 Classes Destroyed 9 | 2 2 . . . 5 Worker 1 | . . . . . 1 Builder 1 | . . . . . 1 Tunneler 3 | 3 . . . . . Recycler 2 | 1 . . . . 1 Mechanic 1 | . . . . . 1 Watcher 1 | . . . . . 1 Swarmer 6 | . 3 . . . 3 Grunt 12 | . 4 . . . 8 Sentry 3 | . . . . . 3 Best Kill Streak 5 | 2 2 . . . 5 Combat Bots Only 4 | . 2 . . . 4 Max Kills in Single Turn 2 | 1 1 . . . 2 Gunslinging . | . . . . . . Exploded 1 | . . . . . 1 Melee . | . . . . . . Uniques/NPCs Destroyed . | . . . . . . Combat | -11 -10 -10 -10 -9 -8 -------- Run | Yrd Mat Min Exi Min Mat Hostile Shots Fired 215 | . 50 . . 2 163 Missed 54 | . 17 . . . 37 Damage Taken 2279 | . 333 . . 89 1857 Core 620 | . 74 . . 75 471 Absorbed by Shields 48 | . . . . . 48 Core Remaining (%) 70 | 100 . . . 40 . Volleys Fired 142 | 19 36 . . . 87 Largest 2 | 2 2 . . . 2 Hottest 105 | 40 40 . . . 105 Shots Fired 244 | 38 72 . . . 134 Gun 240 | 38 72 . . . 130 Cannon . | . . . . . . Launcher . | . . . . . . Special 4 | . . . . . 4 Kinetic 157 | 38 72 . . . 47 Thermal 70 | . . . . . 70 Explosive . | . . . . . . Electromagnetic 17 | . . . . . 17 Robot Hit Streak 9 | 5 9 . . . 8 Robot Miss Streak 4 | 2 4 . . . 4 Penetration Max . | . . . . . . Secondary Targets 4 | . . . . . 4 Max Gunslinging Chain 1 | . . . . . 1 Shots Hit Robots 147 | 23 41 . . . 83 Core Hits 64 | 8 17 . . . 39 Critical Kills . | . . . . . . Critical Parts Destroyed 1 | . 1 . . . . Critical Strikes 3 | . 1 . . . 2 Burn 2 | . . . . . 2 Destroy 1 | . 1 . . . . Melee Attacks . | . . . . . . Impact . | . . . . . . Slashing . | . . . . . . Piercing . | . . . . . . Sneak Attacks . | . . . . . . Combat Hostiles . | . . . . . . Follow-up Attacks . | . . . . . . Damage Inflicted 1958 | 176 337 . . . 1445 Guns 1563 | 176 337 . . . 1050 Cannons . | . . . . . . Explosions 350 | . . . . . 350 Melee . | . . . . . . Ramming . | . . . . . . Kinetic 834 | 176 337 . . . 321 Thermal 976 | . . . . . 976 Explosive . | . . . . . . Electromagnetic 148 | . . . . . 148 Impact . | . . . . . . Slashing . | . . . . . . Piercing . | . . . . . . Highest Corruption . | . . . . . . Average Corruption . | . . . . . . Corruption Purged . | . . . . . . Corruption Blocked . | . . . . . . Overload Shots . | . . . . . . Overflow Damage 8 | . . . . . 8 Projectiles . | . . . . . . Explosions 8 | . . . . . 8 Melee . | . . . . . . Knockbacks . | . . . . . . Impact . | . . . . . . Kinetic . | . . . . . . Secondary . | . . . . . . Self-Inflicted Damage . | . . . . . . Shots . | . . . . . . Rammed . | . . . . . . Targets Rammed . | . . . . . . Kicked . | . . . . . . Crushed . | . . . . . . Highest Temperature 556 | . 27 . . . 556 Average Temperature 198 | . 11 . . . 236 Received Heat Transfer 1139 | . 114 . . . 1025 Effects 12 | . . . . . 12 Shutdowns 3 | . . . . . 3 Energy Bleed 1 | . . . . . 1 Matter Decay 1 | . . . . . 1 Damage (major) 7 | . . . . . 7 Siege Activations . | . . . . . . Robots Corrupted 1 | . . . . . 1 Combat Hostiles 1 | . . . . . 1 Parts Fried . | . . . . . . Impact Corruptions . | . . . . . . Robots Melted . | . . . . . . Combat Hostiles . | . . . . . . Parts Melted 7 | . . . . . 7 Heat Transferred 2237 | . . . . . 2237 Parts Sabotaged . | . . . . . . Parts Stolen . | . . . . . . Parts Stripped . | . . . . . . Power Chain Reactions 2 | . . . . . 2 Alert | -11 -10 -10 -10 -9 -8 ------- Run | Yrd Mat Min Exi Min Mat Peak Influence 193 | 20 148 44 . . 193 Initial 44 | . 13 44 . . . Average 49 | 9 62 44 . . 61 Maximum Alert Level . | . . . . . . Low Security (%) 100 | 100 100 100 . 100 100 Level 1 . | . . . . . . Level 2 . | . . . . . . Level 3 . | . . . . . . Level 4 . | . . . . . . Level 5 . | . . . . . . High Security . | . . . . . . Max Security . | . . . . . . Squads Dispatched 2 | . . . . . 2 Investigation . | . . . . . . Extermination . | . . . . . . Reinforcement 2 | . . . . . 2 Assault . | . . . . . . Garrison . | . . . . . . Intercept . | . . . . . . Searches Triggered . | . . . . . . Construction Impeded 1 | . . . . . 1 Haulers Reinforced . | . . . . . . Active Scanning Responses . | . . . . . . Cargo Convoy Interrupts . | . . . . . . Stealth | -11 -10 -10 -10 -9 -8 --------- Run | Yrd Mat Min Exi Min Mat Distress Signals 2 | . . . . . 2 Communications Jammed . | . . . . . . Distress Signals . | . . . . . . Times Spotted 42 | . 12 . . 2 28 Peak Tracking Total 6 | . 5 . . 2 6 Tactical Retreats 1 | . 1 . . . . Traps | -11 -10 -10 -10 -9 -8 ------- Run | Yrd Mat Min Exi Min Mat Traps Triggered . | . . . . . . Indirectly . | . . . . . . Trap Hack Attempts . | . . . . . . Triggered . | . . . . . . Disarmed 4 | . 4 . . . . Reprogrammed . | . . . . . . Reused 1 | . . . . . 1 Traps Reconfigurated 4 | . . . . . 4 Traps Extracted . | . . . . . . Installed 3 | . . . . . 3 Triggered 1 | . . . . . 1 Most Traps Carried 5 | . . . . 5 5 Machines | -11 -10 -10 -10 -9 -8 ---------- Run | Yrd Mat Min Exi Min Mat Machines Disabled 1 | . . . . . 1 Max in Single Turn 1 | . . . . . 1 Machines Repaired . | . . . . . . Machines Dismantled . | . . . . . . Machines Sabotaged . | . . . . . . Overloaded Fab Kills . | . . . . . . Hacking | -11 -10 -10 -10 -9 -8 --------- Run | Yrd Mat Min Exi Min Mat Machines Accessed 6 | . 6 . . . . Terminals 4 | . 4 . . . . Fabricators . | . . . . . . Repair Stations . | . . . . . . Recycling Units 2 | . 2 . . . . Scanalyzers . | . . . . . . Garrison Access . | . . . . . . Total Hacks 16 | . 16 . . . . Successful 6 | . 6 . . . . Failed 10 | . 10 . . . . Catastrophic . | . . . . . . Database Lockouts . | . . . . . . Manual 3 | . . . 3 . . Terminals 12 | . 12 . . . . Fabricators . | . . . . . . Repair Stations . | . . . . . . Recycling Units 4 | . 4 . . . . Scanalyzers . | . . . . . . Garrison Access . | . . . . . . Terminal Hacks 4 | . 4 . . . . Alert Level 1 | . 1 . . . . Disarm Traps 1 | . 1 . . . . Zone Layout 2 | . 2 . . . . Fabricator Hacks . | . . . . . . Repair Station Hacks . | . . . . . . Recycling Unit Hacks 2 | . 2 . . . . Retrieve Components 2 | . 2 . . . . Scanalyzer . | . . . . . . Garrison Access Hacks . | . . . . . . Unauthorized Hacks . | . . . . . . Terminals . | . . . . . . Fabricators . | . . . . . . Repair Stations . | . . . . . . Recycling Units . | . . . . . . Scanalyzers . | . . . . . . Garrison Access . | . . . . . . Data Cores Recovered . | . . . . . . Used . | . . . . . . Hacking Detections 5 | . 5 . . . . Full Trace Events . | . . . . . . Feedback Events . | . . . . . . Feedback Blocked . | . . . . . . Robot Schematics Acquired . | . . . . . . Robots Built . | . . . . . . Authchips . | . . . . . . Time . | . . . . . . Total Robot Build Rating . | . . . . . . Part Schematics Acquired . | . . . . . . Parts Built . | . . . . . . Authchips . | . . . . . . Time . | . . . . . . Total Part Build Rating . | . . . . . . Parts Repaired . | . . . . . . Time . | . . . . . . Parts Recycled . | . . . . . . Recycled Matter . | . . . . . . Retrieved Matter . | . . . . . . Retrieved Components 4 | . 4 . . . . Parts Scanalyzed . | . . . . . . Part Schematics Acquired . | . . . . . . Parts Damaged . | . . . . . . Bothacking | -11 -10 -10 -10 -9 -8 ------------ Run | Yrd Mat Min Exi Min Mat Used RIF Installer . | . . . . . . Robots Hacked . | . . . . . . Non-combat . | . . . . . . Combat . | . . . . . . Robot Hacks Applied . | . . . . . . Relay Couplers Released . | . . . . . . Fabnet Peak Effective % . | . . . . . . Robots Rewired . | . . . . . . Allies Hacked . | . . . . . . Hacks Repelled . | . . . . . . Allies | -11 -10 -10 -10 -9 -8 -------- Run | Yrd Mat Min Exi Min Mat Total Allies . | . . . . . . Largest Group . | . . . . . . Highest-Rated Group . | . . . . . . Highest-Rated Ally . | . . . . . . Total Orders . | . . . . . . Ally Attacks . | . . . . . . Total Damage . | . . . . . . Kills . | . . . . . . Allies Corrupted . | . . . . . . Allies Melted . | . . . . . . Intel | -11 -10 -10 -10 -9 -8 ------- Run | Yrd Mat Min Exi Min Mat Robot Analysis Total . | . . . . . . Derelict Logs Recovered 2 | . . . . 2 . Drone Launches . | . . . . . . Drone Recoveries . | . . . . . . Exploration | -11 -10 -10 -10 -9 -8 ------------- Run | Yrd Mat Min Exi Min Mat Turns Passed 2748 | 154 715 16 470 328 1065 Spaces Moved 1543 | 76 502 14 369 170 412 Core 10 | 9 . . . . 1 Treads . | . . . . . . Legs 1379 | 67 502 14 369 170 257 Wheels 154 | . . . . . 154 Hover . | . . . . . . Flight . | . . . . . . Fastest Speed 50 | 50 120 120 120 190 100 Average Speed 148 | 116 120 120 126 190 191 Slowest Speed 800 | 120 120 120 190 190 800 Overloaded Moves . | . . . . . . Propulsion Burnouts . | . . . . . . Robots Hopped . | . . . . . . Cave-ins Triggered . | . . . . . . Exploration Rate (%) 34 | 6 66 6 65 37 25 Regions Visited 5 Branch Regions 3 Pre-discovered Areas 1 | . . 1 . . . Known Exits Taken 4 | . 1 1 1 1 . Unknown Exits Taken 1 | 1 . . . . . Scrap Searched 1 | . . . . 1 . Spaces Dug . | . . . . . . Terrain Destroyed 7 | . . . . . 7 Melee . | . . . . . . Projectile . | . . . . . . AOE 7 | . . . . . 7 Terrain Rammed . | . . . . . . Walls Destroyed . | . . . . . . Machines Disabled . | . . . . . . Actions | -11 -10 -10 -10 -9 -8 --------- Run | Yrd Mat Min Exi Min Mat Total 1791 | 111 558 13 375 175 559 Wait . | . . . . . . Move 1538 | 75 501 13 368 169 412 Hop . | . . . . . . Pick Up 54 | 11 10 . 3 6 24 Fast Attach . | . . . . . . Attach 26 | 6 1 . . . 19 Detach 1 | . . . . . 1 Swap 8 | . 4 . 1 . 3 Drop 19 | . 6 . 3 . 10 Fire 142 | 19 36 . . . 87 Melee . | . . . . . . Ram . | . . . . . . Kick . | . . . . . . Crush . | . . . . . . Escape Stasis . | . . . . . . Rewire . | . . . . . . Trap 3 | . . . . . 3 Miscellaneous . | . . . . . . Route ------- -11/Scrapyard -10/Materials (discovered 3 exits: [*Mat] / *Min x2) -10/Mines -10/Exiles (discovered 2 exits: *Min x2) -9/Mines -8/Materials (discovered 1 exit: Fac) History --------- Turn | Location | Event 17 | -11/Scrapyard | Discovered new exit (range 15) 155 | -11/Scrapyard | Entered Materials 308 | -10/Materials | Build established: Mutant 497 | -10/Materials | Discovered new exit (range 16) 597 | -10/Materials | Discovered new exit (range 9) 766 | -10/Materials | Discovered new exit (range 6) 845 | -10/Materials | Identified exit to Mines 870 | -10/Materials | Entered Mines 871 | -10/Mines | Learned location of Storage (-7) 880 | -10/Mines | Deemed a non-threat by the Exiles lab entrance 880 | -10/Mines | Discovered new exit (range 5) 884 | -10/Mines | Identified exit to Exiles 886 | -10/Mines | Entered Exiles 904 | -10/Exiles | Discovered new exit (range 15) 920 | -10/Exiles | Identified exit to Mines 945 | -10/Exiles | Met 8R-AWN 969 | -10/Exiles | Met EX-HEX 1024 | -10/Exiles | Met EX-BIN 1119 | -10/Exiles | Aligned with FarCom system 1120 | -10/Exiles | Given EX-Vault access code 1148 | -10/Exiles | Opened EX-Vault 1153 | -10/Exiles | Found Prototype Device 1177 | -10/Exiles | Warned to stay clear of 0b10 Research branches 1199 | -10/Exiles | Exiles lab attacked by MAIN.C 1332 | -10/Exiles | Discovered exit to Mines (range 14) 1356 | -10/Exiles | Left Exiles lab with Trap Reconfigurator 1356 | -10/Exiles | Entered Mines 1443 | -9/Mines | Learned Materials security intel 1563 | -9/Mines | Found a hidden stash of uninstalled traps 1623 | -9/Mines | Learned 2 Materials zone layouts 1668 | -9/Mines | Discovered new exit (range 9) 1675 | -9/Mines | Assembled infested the area 1682 | -9/Mines | Identified exit to Materials 1684 | -9/Mines | Core integrity fell below 50% 1684 | -9/Mines | Entered Materials 1684 | -8/Materials | Evolved 4 slots: Propulsion x2, Utility x2 1685 | -8/Materials | Identified exit to Factory 1686 | -8/Materials | Identified Trap Reconfigurator 1900 | -8/Materials | Lost 5 parts (3n2w) 2083 | -8/Materials | Core integrity fell below 50% 2119 | -8/Materials | Lost 5 parts (4n1w) 2517 | -8/Materials | Core integrity fell below 20% 2749 | -8/Materials | Self-destructed Last Messages --------------- 02551_ K-01 Serf collects debris. 02558_ Acquired Arm. Huge Wheel. 02558_ K-01 Serf collects debris. 02560_ Dropped Aluminum Leg. 02561_ Acquired Arm. Huge Wheel. 02561_ K-01 Serf collects debris. 02565_ Acquired Imp. Deuterium Engine. 02568_ K-01 Serf collects debris. 02573_ Acquired Broken Hvy. Assault Rifle. 02574_ K-01 Serf collects debris. 02574_ Acquired 20 matter. 02588_ Acquired Hacking Suite. 02609_ Acquired Hcp. Storage Unit. 02626_ Dropped Hcp. Storage Unit. 02645_ Acquired Shield Generator. 02663_ Acquired Plasma Cutter. 02693_ Acquired 20 matter. 02713_ Critical hit (Burn: +26). 02719_ Med. Laser destroyed. 02741_ Lgt. Nuclear Core destroyed. Map ----- +----------------------------------------------------+ | | | ???????????#######??########????????? | | ???????????# #?#! ! #????????? | | ???????????#""" !#?# #????????? | | ???????????#""" #?#""" #????????? | | ???????????#""" #?#""" !#????????? | | ???????????#""" #?#""" #????##### | | ???????????# #?# ###### | | ???????????####+######+##+## # | | ????????????# # | | ????????????# + | | ????????????###+#########+## # | | ????????????# #???????## ## | | ????????????# == #????????# ## | | ????????????#/ =/ #???????## ## | | ????????????# #???????+ ## | | ????????????# !#???????## ###### | | ????????????# #????????# ###### | | ????????????###+####????????# ## | | ??????????????# #???????????# ## "" | | ???????????#### ###?????????# ## "" | | ???????????# #????????## ## "" | | ???????????# ########## # | | ???????????# % # "" | | ???????????# / "" | | ???????????#@ ##+####### # "" | | ???????????# Y # #?#### ## | | ???????????###+#### #?# ## "" | | ???????????? ?#! #?#!! ## "" | | ?????????? # /#?#!!**==## "" | | ????????# /# #?######### | | ????????# # #?????????##### | | ????????# # #?????????????# | | ????????# [* #####????????????## | | ????????# ** #????????????????#[ | | ????????# ** #????????????????#* | | ????????######## ##????????????????#= | | ????????????????##?????????????????# | | ???????????????????????????????????# | | ???????????????????????????????????# | | ???????????????????????????????????# | | ???????????????????????????????????# | | ???????????????????????????????????# | | ???????????????????????????????????# | | ???????????????????????????????????+ | | ?????????????????????????????????? # | | ????????????????????????????????? # | | ?????????????????????????????????#?# | | ??????????????????????????????????? | | ??????????????????????????????????? | +----------------------------------------------------+ Best States ------------- Heat Dissipation 45 Energy Generation 14 Energy Capacity 250 Matter Stores 300 Matter Capacity 300 Sight Range 16 Terrain Scan Range 16 Terrain Scan Density 10 Evasion (%) 55 Item Schematics ----------------- None Robot Schematics ------------------ None Fabricated ------------ Nothing Alien Tech Used ----------------- None Achievements -------------- None Challenges ------------ None Game ------ Seed FusionNetworkCompactor Manual? 0 Play Time 00:30:19 Cumulative 6.9 hours Start 2024.04.12 @ 17:12:52 End 2024.04.12 @ 17:41:45 Sessions 1 Manual Loads 0 Difficulty Rogue Special Mode None Game No. 12 Rogue 12 Adventurer 0 Explorer 0 Win Type - Total 0 Types 0/0/0/0/0/0/0/0/0 Lore% 9 Gallery% 10 Achievement% 11 Wizard Run 0 Options --------- Layout 1 ASCII 0 Keyboard 0 Movement Mouse Keybinds 0 Fullscreen 1 Font 16/SmallcapsGlow Map View 55x38 Zoom Use 0% Tactical HUD 1 Map Filters NONE Filters NONE Steam 1 RUN: 9a066941-9bb2-4a23-b414-fa484abc3506